[Event "Czech Extraliga 2024-25"]
[Site "Czechia"]
[Date "2024.11.03"]
[Round "2.2"]
[White "Michalik, Peter"]
[Black "Nasuta, Grzegorz"]
[Result "1/2-1/2"]
[ECO "D12"]
[WhiteElo "2562"]
[BlackElo "2543"]
[Annotator "TA"]
[PlyCount "65"]
[EventDate "2024.09.12"]
[EventType "team-tourn"]
[EventCountry "CZE"]
[SourceTitle "playchess.com"]
[Source "ChessBase"]
[SourceQuality "1"]
[TimeControl "40/5400+30:1800+30"]

{[%evp 12,65,34,41,39,6,39,32,34,16,19,0,0,0,0,0,8,14,6,0,0,-20,0,0,0,-5,-12,0,-6,-17,45,50,50,60,60,60,63,64,111,54,62,47,51,53,46,35,41,0,0,0,0,12,8,0,0,0]} 1. d4 {[%emt 0:00:02]} d5 {[%emt 0:00:05]} 2. c4 {[%emt 0:00:07]} c6 {[%emt 0:00:04]} 3. Nf3 {[%emt 0:00:06]} Nf6 {[%emt 0:00:05]} 4. e3 {[%emt 0:00:43]} Bf5 {[%emt 0:00:07]} 5. Nc3 {[%emt 0:00:13]} e6 {[%emt 0:00:07]} 6. Nh4 {[%emt 0:00:13]} Be4 {[%emt 0:00:07]} 7. f3 {[%emt 0:00:13]} Bg6 {[%emt 0:00:06]} 8. Bd2 {[%emt 0:00:45]} Be7 {[%emt 0:00:54]} 9. Nxg6 {[%emt 0:01:48]} hxg6 {[%emt 0:00:07] White is slightly better.} 10. Qc2 {[%emt 0:00:41]} Nbd7 {[%emt 0:00:37]} 11. O-O-O {[%emt 0:00:25]} a6 {[%emt 0:00:10]} 12. Kb1 {[%emt 0:01:36]} dxc4 $1 {[%emt 0:00:42]} 13. Bxc4 {[%emt 0:00:13]} c5 {[%emt 0:00:12]} 14. g4 {[%emt 0:01:06][%cal Oc4e6]} Nb6 {[%emt 0:03:31][%csl LRc4,LRd4]} 15. Bxe6 {[%emt 0:02:36][%cal Od4c5] [#] Black must now prevent dxc5!} cxd4 {[%emt 0:00:46]} 16. g5 {[%emt 0:00:40]} dxc3 {[%emt 0:35:33]} (16... fxe6 17. Qxg6+ (17. gxf6 d3 $14) 17... Kd7 18. gxf6 Bxf6 19. exd4 $18) 17. gxf6 {[%emt 0:00:16]} Bxf6 {[%emt 0:00:37]} 18. Bxc3 {[%emt 0:00:07]} Qc7 {[%emt 0:00:08]} 19. Bb3 {[%emt 0:00:09][%cal Be6b3,Bb3c2,Bc2e4][%mdl 32]} (19. Bxf6 {simplifies} Qxc2+ 20. Kxc2 gxf6 21. Bb3) 19... Bxc3 {[%emt 0:01:30]} 20. Rd4 {[%emt 0:00:12] [#]} (20. Qxc3 {simplifies} Qxc3 21. bxc3 Rh3 22. Rd6) 20... Rd8 {[%emt 0:14:04]} 21. Qe4+ $14 {[%emt 0:06:39]} Kf8 {[%emt 0:09:07]} 22. Rxd8+ {[%emt 0:01:57]} Qxd8 {[%emt 0:00:06]} 23. Qxb7 {[%emt 0:00:17][%csl Gb3][%cal Rb7f7]} (23. bxc3 Rh4 24. Qxb7 Qd3+ 25. Kb2 Qd2+ 26. Ka1 Qxc3+ (26... Rxh2 27. Qxf7#) 27. Kb1 Qd3+ (27... Qxe3 28. Qxf7#) 28. Ka1 Qc3+ (28... Qxe3 29. Qxf7#) 29. Kb1 Qd3+ (29... Qxe3 30. Qxf7#) 30. Ka1 Qc3+ $11 (30... Qxe3 31. Qxf7#)) 23... Qd3+ {[%emt 0:05:13]} 24. Bc2 $1 {[%emt 0:01:30] Really sharp!} ({Much weaker is} 24. Ka1 Bxb2+ 25. Kxb2 Qd2+ 26. Kb1 Qd3+ 27. Kc1 Qxe3+ 28. Kb1 Qd3+ 29. Kc1 Qc3+ 30. Kb1 Qd3+ 31. Bc2 Qb5+ 32. Bb3 Qd3+ $11) 24... Qxe3 {[%emt 0:13:09]} (24... Qb5 $14 {is more appropriate.} 25. Qb8+ Ke7 26. Qc7+ (26. Qxh8 $2 Qxb2#) 26... Nd7 27. Qxc3 Rh5) 25. Qb8+ {[%emt 0:08:05]} ({White should play} 25. bxc3 $16 {Qb8+ would now be deadly.} Rh5 26. Rd1 (26. Qb8+ Qe8 $11)) 25... Qe8 {[%emt 0:05:00]} 26. Qxb6 {[%emt 0:00:26]} Bf6 {[%emt 0:00:17]} 27. Qxa6 {[%emt 0:08:50]} Kg8 {[%emt 0:04:03][%cal Oh8h2]} 28. Be4 {[%emt 0:03:06]} (28. Qa4 $5 Qe7 29. Qa6 $17) 28... Qe5 {[%emt 0:03:11][%csl Gf6][%cal Re5b2]} 29. Qc8+ {[%emt 0:03:40]} Kh7 {[%emt 0:00:05][%csl Gf6][%cal Re5b2] The position is equal.} 30. Qh3+ {[%emt 0:00:04]} Kg8 {[%emt 0:00:04]} 31. Qg2 {[%emt 0:00:07]} Rh5 {[%emt 0:01:28]} 32. Qc2 {[%emt 0:05:11]} Qb8 $1 {[%emt 0:01:09][%cal Oh5c5] ...Rc5! is the strong threat.} 33. Bd3 {[%emt 0:05:06] Weighted Error Value: White=0.09 (flawless) /Black=0.10 (very precise) .  Mistake:       	White=1     	Black=2      Inaccurate:     	White=2     	Black=1      OK:         	White=9     	Black=11     Best:        	White=2     	Black=4      Strong:       	White=1     	Black=2} 1/2-1/2

[Event "Czech Extraliga 2024-25"]
[Site "Czechia"]
[Date "2024.11.03"]
[Round "2.2"]
[White "Blohberger, Felix"]
[Black "Smolik, Jachym"]
[Result "0-1"]
[ECO "D02"]
[WhiteElo "2536"]
[BlackElo "2278"]
[Annotator "TA"]
[PlyCount "96"]
[EventDate "2024.09.12"]
[EventType "team-tourn"]
[EventCountry "CZE"]
[SourceTitle "playchess.com"]
[Source "ChessBase"]
[SourceQuality "1"]
[TimeControl "40/5400+30:1800+30"]

{[%evp 9,96,16,32,26,35,31,36,28,33,23,35,35,17,0,44,35,76,78,93,85,112,110,164,163,159,142,179,157,164,151,163,133,129,134,180,136,118,106,85,104,175,175,385,385,330,289,325,169,179,153,225,171,170,154,158,156,322,327,310,252,245,231,256,191,171,-343,-362,-358,-348,-350,-339,-402,-400,-514,-514,-522,-498,-604,-595,-638,-640,-2133,-1769,-29977,-29978,-29988,-29989,-29989,-29990]} 1. Nf3 {[%emt 0:00:04]} d5 {[%emt 0:03:17]} 2. g3 {[%emt 0:00:03]} Nd7 {[%emt 0:00:15]} 3. d4 {[%emt 0:00:07]} Nb6 {[%emt 0:00:04]} 4. a4 {[%emt 0:00:04]} a5 {[%emt 0:00:19]} 5. Qd3 {[%emt 0:00:05]} g6 {[%emt 0:02:59]} 6. e4 {[%emt 0:01:35]} dxe4 {[%emt 0:00:45]} 7. Qxe4 {[%emt 0:00:06]} Nf6 {[%emt 0:00:54]} 8. Qe2 {[%emt 0:00:20] White is slightly better.} Bg7 {[%emt 0:18:42]} 9. Bg2 {[%emt 0:00:14]} O-O {[%emt 0:00:05]} 10. O-O {[%emt 0:00:20]} c6 {[%emt 0:00:41]} 11. c4 {[%emt 0:09:47]} Be6 {[%emt 0:01:34]} 12. b3 {[%emt 0:01:55]} Nc8 {[%emt 0:00:15]} 13. Bb2 {[%emt 0:04:25]} Re8 {[%emt 0:08:15]} 14. h3 {[%emt 0:07:31]} Qb6 {[%emt 0:06:28]} 15. Nbd2 {[%emt 0:01:13]} Qa6 {[%emt 0:04:32]} (15... Nd7 $16 16. Rfe1 Qc7) 16. Ne5 $18 {[%emt 0:04:51][%cal Bf3e5,Be5d3,Bd3c5][%mdl 32]} Nd6 {[%emt 0:11:24]} 17. g4 {[%emt 0:07:03]} Rad8 {[%emt 0:02:01]} 18. Rae1 {[%emt 0:03:53]} Nd7 {[%emt 0:11:08]} 19. f4 {[%emt 0:06:43]} Nf8 {[%emt 0:01:25]} 20. Kh1 {[%emt 0:09:16]} f6 {[%emt 0:01:52]} 21. Nd3 {[%emt 0:00:56]} Bf7 {[%emt 0:00:19]} (21... Bc8 $16 22. Nf3 Nf7) 22. Nc5 {[%emt 0:07:15]} Qa7 {[%emt 0:00:37]} 23. f5 {[%emt 0:03:42] Ne6 is the strong threat.} e6 {[%emt 0:05:12]} 24. fxg6 {[%emt 0:08:09]} hxg6 {[%emt 0:00:02]} (24... Bxg6 $16 {keeps fighting.} 25. Qe3 f5) 25. Nd3 {[%emt 0:02:09]} g5 $2 {[%emt 0:03:38]} (25... Re7 26. c5 Ne8) 26. c5 {[%emt 0:08:37]} Nc8 {[%emt 0:00:02]} 27. Ne4 {[%emt 0:00:11]} Nh7 {[%emt 0:01:18]} 28. Rf3 {[%emt 0:07:06]} (28. h4 $142) 28... Bg6 {[%emt 0:00:44]} 29. Qf2 {[%emt 0:00:50]} Rf8 {[%emt 0:00:54]} (29... Qb8 $16 {is a better defense.} 30. Bc3 Rd7) 30. Nd2 {[%emt 0:02:54]} e5 {[%emt 0:09:09]} 31. Ne4 {[%emt 0:00:22]} exd4 {[%emt 0:00:51]} 32. Bxd4 {[%emt 0:00:52]} Rxd4 $2 {[%emt 0:03:08]} (32... Qb8 $16) 33. Qxd4 {[%emt 0:00:10]} f5 {[%emt 0:00:05]} 34. Ne5 {[%emt 0:02:06]} (34. Qc4+ Bf7 35. Qc1 fxe4 36. Rxe4 Qb8 $14 (36... Bxb3 37. Rxf8+ Kxf8 38. Ne5 $16)) 34... Bxe5 {[%emt 0:00:17]} 35. Qxe5 {[%emt 0:00:05]} Re8 {[%emt 0:00:13] [#]} 36. Qd4 {[%emt 0:02:11]} fxe4 {[%emt 0:00:05] [#]} 37. Rf6 {[%emt 0:01:13][%mdl 8192]} Nxf6 $19 {[%emt 0:01:46]} 38. Qxf6 {[%emt 0:00:06] [#]} Kh7 {[%emt 0:00:33]} ({And not} 38... Ne7 39. Qxg5 Qb8 40. Rxe4 $11) 39. Qxg5 {[%emt 0:00:57]} Qb8 {[%emt 0:00:27]} 40. Rd1 {[%emt 0:00:32] [#] Black must now prevent h4.} Qc7 $1 {[%emt 0:01:18]} 41. Qh4+ {[%emt 0:08:01]} Kg7 {[%emt 0:11:41] Hoping for ...Qe5.} 42. g5 {[%emt 0:00:41]} Rh8 {[%emt 0:01:08] Prevents Qh6+} 43. Qg4 {[%emt 0:00:09] Strongly threatening Rd7+.} Qe5 {[%emt 0:03:11][%cal Og6f5] ...Bf5! would now be deadly.} 44. Rd7+ {[%emt 0:03:03]} Ne7 {[%emt 0:00:03] Threatens to win with ...e3.} 45. Rxb7 {[%emt 0:02:04]} e3 {[%emt 0:03:26] ( -> ...e2)} ({Weaker is} 45... Qxc5 46. Qe6 Re8 (46... Qc1+ 47. Kh2 $11) 47. Qf6+ Kg8 48. Kh2 $11) 46. Qd7 {[%emt 0:03:00]} Re8 {[%emt 0:00:38] Black mates.} 47. Qd1 {[%emt 0:00:26]} e2 {[%emt 0:00:41]} 48. Qe1 {[%emt 0:00:04]} Rd8 {[%emt 0:00:37] Weighted Error Value: White=0.80/Black=0.20 (precise) .  Loses game:     	---       	Black=1      Missed win:     	White=1     	---        Mistake:       	White=1     	Black=5      Inaccurate:     	White=1     	Black=3      OK:         	White=16    	Black=16     Best:        	---       	Black=3      Strong:       	---       	Black=1} 0-1

[Event "Czech Extraliga 2024-25"]
[Site "Czechia"]
[Date "2024.11.03"]
[Round "2.2"]
[White "Gloser, David"]
[Black "Dardha, Daniel"]
[Result "0-1"]
[ECO "B25"]
[WhiteElo "2332"]
[BlackElo "2606"]
[Annotator "TA"]
[PlyCount "92"]
[EventDate "2024.09.12"]
[EventType "team-tourn"]
[EventCountry "CZE"]
[SourceTitle "playchess.com"]
[Source "ChessBase"]
[SourceQuality "1"]
[TimeControl "40/5400+30:1800+30"]

{[%evp 18,92,0,-17,-12,-14,-12,-24,-25,-23,-22,-25,-18,-21,-16,-29,-26,-64,-53,-59,-35,-16,-1,-12,-14,-29,-23,-28,-23,-28,-31,-35,-47,-33,-33,-40,-13,-13,-8,-6,-8,-35,-34,-45,-13,-35,-13,-14,-14,-14,-7,-7,-7,-28,-22,-864,-847,-675,-664,-598,-578,-6070,-6048,-6075,-6070,-5261,-2385,-12838,-8422,-12816,-5073,-29986,-29987,-29987,-29988,-29988,-29989]} 1. e4 {[%emt 0:00:04]} c5 {[%emt 0:00:06]} 2. Nc3 {[%emt 0:00:11]} a6 {[%emt 0:00:49]} 3. a4 {[%emt 0:07:18]} Nc6 {[%emt 0:02:14]} 4. g3 {[%emt 0:04:11]} g6 {[%emt 0:00:30]} 5. Bg2 {[%emt 0:01:06]} Bg7 {[%emt 0:00:10]} 6. d3 {[%emt 0:01:27]} Nf6 {[%emt 0:02:46]} 7. f4 {[%emt 0:05:59]} d6 {[%emt 0:01:43]} 8. Nf3 {[%emt 0:03:43]} O-O {[%emt 0:02:02]} 9. O-O {[%emt 0:02:41]} Rb8 {[%emt 0:02:58]} 10. h3 {[%emt 0:03:34]} b5 {[%emt 0:02:26]} 11. axb5 {[%emt 0:01:17]} axb5 {[%emt 0:00:05]} 12. Be3 {[%emt 0:03:21]} Nd7 {[%emt 0:02:31] Black has an edge.} 13. Rb1 {[%emt 0:04:36]} e6 {[%emt 0:18:52]} 14. g4 {[%emt 0:05:37]} b4 {[%emt 0:11:57]} 15. Ne2 {[%emt 0:01:32]} Bb7 {[%emt 0:03:42]} 16. Ng3 {[%emt 0:09:10]} Nd4 {[%emt 0:02:16]} 17. f5 {[%emt 0:01:27]} exf5 {[%emt 0:05:11] Black is more active.} 18. gxf5 {[%emt 0:01:38]} d5 {[%emt 0:03:48]} 19. Nxd4 {[%emt 0:04:27]} cxd4 {[%emt 0:00:30]} 20. Bf4 {[%emt 0:00:37][%cal Oe4d5]} Rc8 {[%emt 0:02:21]} 21. Qd2 {[%emt 0:02:08]} (21. exd5 Nb6 22. Qd2 Nxd5 $17) 21... dxe4 {[%emt 0:12:23]} 22. Nxe4 {[%emt 0:02:39]} Bxe4 {[%emt 0:01:30]} 23. Bxe4 {[%emt 0:02:12]} Nf6 {[%emt 0:00:16]} 24. fxg6 {[%emt 0:07:13]} hxg6 {[%emt 0:02:31]} 25. Rbe1 {[%emt 0:06:19]} Nxe4 {[%emt 0:03:28]} 26. Rxe4 {[%emt 0:00:28][%cal Of4h6]} Qd5 {[%emt 0:03:30]} 27. b3 {[%emt 0:03:38]} Rfe8 {[%emt 0:01:52]} 28. Rxe8+ {[%emt 0:02:49]} Rxe8 {[%emt 0:00:05]} 29. Re1 {[%emt 0:01:50]} Rc8 {[%emt 0:01:14]} 30. Rf1 {[%emt 0:05:01]} Qh5 {[%emt 0:01:42]} 31. Kh2 {[%emt 0:01:27]} Be5 {[%emt 0:01:34] Threatens to win with ...Bxf4+.} 32. Rf2 {[%emt 0:01:32]} Re8 {[%emt 0:02:43]} 33. Bxe5 {[%emt 0:00:48]} Qxe5+ $11 {[%emt 0:00:04][%mdl 4096] Endgame. KQR-KQR} 34. Qf4 {[%emt 0:00:08]} Qd5 $36 {[%emt 0:00:09][%mdl 2048] Black is more active.} 35. Kg3 {[%emt 0:05:19]} (35. h4 $5) 35... Re1 {[%emt 0:01:45]} (35... Re3+ {with more complications.} 36. Kh2 Re1 37. Rg2 Qd7) 36. Rf1 {[%emt 0:00:19][%mdl 8192] Loses the game.} (36. Rf3 $11) 36... Rxf1 $19 {[%emt 0:02:58]} 37. Qxf1 {[%emt 0:00:04] KQ-KQ} Qg5+ {[%emt 0:00:03]} 38. Kh2 {[%emt 0:01:02] [#]} Qd2+ {[%emt 0:00:06]} 39. Kh1 {[%emt 0:00:37]} Qxc2 {[%emt 0:00:07]} 40. Qf4 {[%emt 0:00:29]} Qxd3 {[%emt 0:01:32]} 41. Qb8+ {[%emt 0:00:45]} Kg7 {[%emt 0:00:13]} (41... Kh7 $142 42. Qd6 Qf1+ (42... Qxh3+ $2 43. Kg1 $19) (42... Qxb3 $2 43. Kg1 $19) 43. Kh2 d3 44. h4 Qf2+ 45. Kh1 d2 (45... Qxh4+ {gets mated.} 46. Kg2 Qg4+ 47. Kh1 Qe4+ 48. Kh2 Qe2+ 49. Kg3 d2 50. Qd7 Qe1+ 51. Kf4 Qf1+ 52. Ke5 d1=Q 53. Qxd1 Qxd1 54. Ke4 Kg7 55. Kf4 Qd3 56. Ke5 f6+ 57. Kf4 g5+ 58. Kg4 Kh7 59. Kh5 Qh3#) 46. Qd3 Qe1+ (46... Qxh4+ {is a self mate.} 47. Kg2 Qe1 48. Qh3+ Kg7 49. Qg4 d1=Q 50. Qxd1 Qxd1 51. Kf2 Qxb3 52. Kg2 Qe3 53. Kh2 b3 54. Kh1 b2 55. Kg2 b1=Q 56. Kh2 Qbg1#) 47. Kg2 d1=Q (47... d1=B $2 48. Qd4 $19) 48. Qxd1 Qxd1 49. Kg3 Qd3+ (49... Qxb3+ 50. Kf2 Qe6 51. Kf3 b3 52. Kg3 b2 53. Kh2 b1=Q 54. h5 Qe2+ 55. Kg3 Qg1+ 56. Kh4 Qxh5#) 50. Kg2 f5 (50... Qxb3 51. Kf2 Qd3 52. Kg2 b3 53. h5 b2 54. hxg6+ Kxg6 55. Kh2 b1=Q 56. Kg2 Qbf1+ 57. Kh2 Qdh3#) 51. Kh2 f4 (51... Qxb3 52. Kg2 Qe3 53. Kh2 Qf2+ 54. Kh1 b3 55. h5 b2 56. hxg6+ Kh6 57. g7 b1=Q#) 52. Kg1 Qg3+ (52... Qxb3 {leads to mate.} 53. Kh1 Qg3 54. h5 f3 55. hxg6+ Qxg6 56. Kh2 Qg2#) 53. Kf1 f3 (53... Qxh4 54. Ke2 Qg3 55. Kd2 f3 56. Ke3 f2+ 57. Kd4 Qd6+ 58. Ke4 f1=Q 59. Ke3 Qdf4#) 54. h5 Qg2+ 55. Ke1 Qe2#) 42. Qxb4 {[%emt 0:00:54]} Qxh3+ {[%emt 0:00:24]} 43. Kg1 {[%emt 0:00:04]} Qc3 {[%emt 0:00:18]} (43... Qe3+ $142 44. Kf1 d3) 44. Qb8 {[%emt 0:01:48]} d3 {[%emt 0:00:43] Black mates.} 45. Kf2 {[%emt 0:00:30]} Qd4+ {[%emt 0:00:13]} 46. Ke1 {[%emt 0:00:14]} Qe3+ {[%emt 0:00:05] Weighted Error Value: White=0.75/Black=0.26 (precise) .  Loses game:     	White=1     	---        Inaccurate:     	White=2     	Black=2      OK:         	White=10    	Black=13     Best:        	White=1     	Black=1} 0-1

[Event "Czech Extraliga 2024-25"]
[Site "Czechia"]
[Date "2024.11.03"]
[Round "2.3"]
[White "Kempinski, Robert"]
[Black "Haring, Filip"]
[Result "1-0"]
[ECO "D28"]
[WhiteElo "2560"]
[BlackElo "2483"]
[Annotator "TA"]
[PlyCount "49"]
[EventDate "2024.09.12"]
[EventType "team-tourn"]
[EventCountry "CZE"]
[SourceTitle "playchess.com"]
[Source "ChessBase"]
[SourceQuality "1"]
[TimeControl "40/5400+30:1800+30"]

{[%evp 17,49,0,32,34,34,30,31,14,21,15,27,0,0,0,34,23,21,20,43,19,73,71,53,44,59,58,132,105,118,100,122,130,368,334]} 1. d4 {[%emt 0:00:03]} Nf6 {[%emt 0:10:17]} 2. c4 {[%emt 0:00:26]} e6 {[%emt 0:00:10]} 3. Nf3 {[%emt 0:00:33]} d5 {[%emt 0:00:39]} 4. e3 {[%emt 0:00:30][%cal Be2e3,Be3e4,Be4e5][%mdl 32]} dxc4 {[%emt 0:04:26]} 5. Bxc4 {[%emt 0:00:40]} a6 {[%emt 0:00:12]} 6. Qe2 {[%emt 0:01:49]} c5 {[%emt 0:02:54]} 7. dxc5 {[%emt 0:00:48]} Bxc5 {[%emt 0:00:32]} 8. O-O {[%emt 0:00:16]} O-O {[%emt 0:03:09]} 9. e4 {[%emt 0:05:11]} Nc6 {[%emt 0:11:18]} 10. e5 {[%emt 0:01:36]} Nd5 {[%emt 0:00:07]} 11. Bd3 {[%emt 0:06:23][%cal Od3h7] Bxh7+! would now be deadly.} Be7 {[%emt 0:15:13]} 12. Qe4 {[%emt 0:06:17][%csl Gd3][%cal Re4h7] White is slightly better.} f5 {[%emt 0:05:08]} 13. exf6 {[%emt 0:00:49]} Nxf6 {[%emt 0:00:05]} 14. Qe2 {[%emt 0:00:43]} e5 {[%emt 0:04:42]} 15. Rd1 {[%emt 0:09:42] Threatens to win with Bc4+.} Nd4 {[%emt 0:10:45]} 16. Qxe5 {[%emt 0:03:43]} Nxf3+ {[%emt 0:00:14]} 17. gxf3 {[%emt 0:00:08] aiming for Bc4+.} Kh8 {[%emt 0:00:52]} 18. Nc3 {[%emt 0:01:21][%cal Od3h7] And now Bxh7! would win.} Bd6 {[%emt 0:05:43]} (18... Bd7 $11 {keeps the balance.}) 19. Qg5 $16 {[%emt 0:00:45] White has more active pieces.} Be6 {[%emt 0:01:44]} 20. Qh4 {[%emt 0:02:11]} Qc7 {[%emt 0:12:18]} 21. Bg5 {[%emt 0:04:38]} Rae8 {[%emt 0:03:11]} (21... Qf7 $14) 22. Rac1 $40 {[%emt 0:06:08][%mdl 128] White wants a kill.} Qf7 {[%emt 0:02:39] [#]} 23. Ne4 $1 {[%emt 0:04:43]} Be5 {[%emt 0:00:52] [#]} 24. f4 $1 {[%emt 0:00:57]} Nxe4 $2 {[%emt 0:04:22]} (24... Bxb2 $16 {might work better.} 25. Nd6 Qg8) 25. Bxe4 {[%emt 0:00:29] Weighted Error Value: White=0.03 (flawless) /Black=0.36.  Loses game:     	---       	Black=1      Mistake:       	---       	Black=2      Inaccurate:     	---       	Black=1      OK:         	White=6     	Black=6      Best:        	White=2     	Black=1      Strong:       	White=2     	---} 1-0

[Event "Czech Extraliga 2024-25"]
[Site "Czechia"]
[Date "2024.11.03"]
[Round "2.3"]
[White "Bernadskiy, Vitaliy"]
[Black "Anton Guijarro, David"]
[Result "1/2-1/2"]
[ECO "A14"]
[WhiteElo "2543"]
[BlackElo "2671"]
[Annotator "TA"]
[PlyCount "103"]
[EventDate "2024.09.12"]
[EventType "team-tourn"]
[EventCountry "CZE"]
[SourceTitle "playchess.com"]
[Source "ChessBase"]
[SourceQuality "1"]
[TimeControl "40/5400+30:1800+30"]

{[%evp 29,103,-16,-9,-35,-34,-32,-23,-14,-26,-33,20,0,0,0,24,-1,-9,-10,0,-50,65,16,12,0,2,0,24,0,0,0,0,-43,-44,-87,-90,-86,-91,-28,0,0,0,0,0,0,0,0,0,0,0,0,0,0,0,0,0,0,0,0,0,-75,-75,-75,-75,-79,-79,-79,-75,-75,-75,-75,-75,-75,-75,-75,-75,-75]} 1. c4 {[%emt 0:00:06]} e6 {[%emt 0:02:57]} 2. g3 {[%emt 0:01:44]} d5 {[%emt 0:00:09]} 3. Bg2 {[%emt 0:00:03]} c6 {[%emt 0:01:51]} 4. Nf3 {[%emt 0:01:15]} Nf6 {[%emt 0:02:55]} 5. b3 {[%emt 0:05:11]} Be7 {[%emt 0:01:29]} 6. O-O {[%emt 0:00:43]} O-O {[%emt 0:00:05]} 7. Bb2 {[%emt 0:02:08]} b6 {[%emt 0:01:17] is cutting edge theory.} 8. d3 {[%emt 0:07:19]} Bb7 {[%emt 0:10:26]} 9. Nbd2 {[%emt 0:02:00] A14: English Opening: 1...e6 with b3 by White.} c5 {[%emt 0:01:00]} 10. cxd5 {[%emt 0:01:03]} exd5 {[%emt 0:02:50]} 11. Nh4 {[%emt 0:03:32]} g6 $146 {[%emt 0:03:41]} ({Predecessor:} 11... Nc6 12. Nf5 d4 13. e3 Qd7 14. Nxe7+ Qxe7 15. Re1 dxe3 16. Rxe3 Qd8 17. Qf3 Na5 18. Bxf6 Qxf6 19. Qxf6 gxf6 {0-1 Sundararajan,K (2449)-Sengupta,D (2558) IND-ch 48th New Delhi 2010 (13)}) 12. d4 {[%emt 0:01:08]} a5 {[%emt 0:09:48]} 13. Rc1 {[%emt 0:02:52]} Re8 {[%emt 0:00:34]} 14. dxc5 {[%emt 0:04:19]} bxc5 {[%emt 0:01:04]} 15. Nb1 {[%emt 0:12:02]} a4 {[%emt 0:05:28]} 16. bxa4 {[%emt 0:14:53]} Nbd7 {[%emt 0:03:32]} 17. Nc3 {[%emt 0:04:21]} Nb6 {[%emt 0:02:57]} 18. Ba1 {[%emt 0:01:53]} Bc6 {[%emt 0:02:40]} 19. Qd2 {[%emt 0:00:17]} Qd7 {[%emt 0:04:40]} (19... Qd6 $15) 20. e3 {[%emt 0:07:23]} (20. Nf3 $5 Qe6 (20... Nxa4 $2 21. Ne5 $18) 21. Ne5 Qxe5 22. Nxd5 Qxd5 (22... Qe6 23. Nc7 $11) 23. Bxd5 Nbxd5 24. a5 $15) 20... Nxa4 {[%emt 0:13:35]} 21. Nf3 {[%emt 0:06:28]} Qd6 {[%emt 0:08:55]} 22. Nxa4 {[%emt 0:02:50]} (22. Ne5 $5 Nxc3 (22... Qxe5 23. Nxa4 Ne4 24. Bxe4 $16) 23. Nxc6 $11) 22... Rxa4 {[%emt 0:00:15]} 23. Ne5 {[%emt 0:01:24]} Ba8 {[%emt 0:01:27]} 24. Rfd1 {[%emt 0:01:01] [#]} ({White should try} 24. Nd3 $11) 24... d4 {[%emt 0:05:54]} (24... Qa6 $1 $15) 25. Bxa8 {[%emt 0:00:35]} (25. Qc2 $1 $14 {might be stronger.} Qa6 26. Qb3 (26. exd4 Bxg2 27. Kxg2 c4 $14)) 25... Rexa8 $11 {[%emt 0:00:44]} 26. exd4 {[%emt 0:00:10]} Rxa2 {[%emt 0:02:26]} 27. Qf4 {[%emt 0:00:09]} Qe6 {[%emt 0:03:36]} 28. Re1 {[%emt 0:03:44]} (28. dxc5 $5 Bxc5 29. Nd3 $14) 28... Nd5 {[%emt 0:05:40]} 29. Qf3 {[%emt 0:00:07]} Bg5 {[%emt 0:00:12]} 30. Rcd1 {[%emt 0:00:59]} Bd2 {[%emt 0:00:48]} 31. Rf1 {[%emt 0:00:58]} R8a3 {[%emt 0:00:48]} 32. Rxd2 {[%emt 0:02:29]} Rxf3 {[%emt 0:00:57]} ({Of course not} 32... Rxa1 33. Rd3 Rxf1+ 34. Kxf1 $11) 33. Rxa2 {[%emt 0:00:02]} Rf5 {[%emt 0:01:02]} 34. dxc5 {[%emt 0:00:05]} Rxe5 {[%emt 0:00:38]} 35. Ra8+ $1 {[%emt 0:01:12]} Kg7 {[%emt 0:00:02]} 36. f4 $1 {[%emt 0:00:08]} Qc6 {[%emt 0:01:22]} 37. Bxe5+ {[%emt 0:02:02]} Kh6 {[%emt 0:00:24]} 38. Ra5 {[%emt 0:01:12]} Ne3 {[%emt 0:00:07]} 39. Rf2 {[%emt 0:00:05]} Qd5 {[%emt 0:01:06]} 40. h3 {[%emt 0:02:32]} Qd1+ {[%emt 0:00:33]} 41. Kh2 {[%emt 0:30:06]} Nf1+ {[%emt 0:30:34]} 42. Kg2 {[%emt 0:01:59]} Ne3+ {[%emt 0:00:00]} 43. Kh2 {[%emt 0:00:00]} Nf1+ {[%emt 0:00:00]} 44. Rxf1 {[%emt 0:00:00]} (44. Kg2 $11 {keeps the balance.} Ne3+ 45. Kh2) 44... Qxf1 $17 {[%emt 0:00:00]} 45. Ra2 {[%emt 0:00:00]} Qc4 {[%emt 0:00:00]} 46. Rg2 {[%emt 0:00:00]} Qxc5 {[%emt 0:00:00]} 47. g4 {[%emt 0:00:00]} Qe3 {[%emt 0:00:00]} 48. Rg3 {[%emt 0:00:00]} Qe4 {[%emt 0:00:00]} 49. h4 {[%emt 0:00:00]} f5 {[%emt 0:00:00]} 50. gxf5 {[%emt 0:00:00]} Qc2+ {[%emt 0:00:00]} ({Don't play} 50... gxf5 51. Rg5 Qe2+ 52. Kg3 Qe3+ 53. Kh2 Qe2+ 54. Kg3 Qd3+ 55. Kf2 Qd2+ 56. Kg1 Qd1+ 57. Kh2 Qe2+ $11) 51. Rg2 {[%emt 0:00:00]} Qxf5 {[%emt 0:00:00]} 52. Rg5 {[%emt 0:00:00]} 1/2-1/2